[Event "Skanderborg Skakklub SmukSkak EMT"]
[Site "Niels Ebbesenskolen, Skanderborg, Denmark"]
[Date "2020.08.21"]
[Round "1.1"]
[White "Olsen, Michael R. W."]
[Black "Pedersen, Lars Foldager"]
[Result "1/2-1/2"]
[TimeControl "90 min. til 40 træk, derefter 30 min. plus opsparet tid til resten af partiet med 30 sek. tillæg pr. træk fra træk ét."]
[WhiteFideId "1440969"]
[BlackFideId "1417649"]
[WhiteElo "2104"]
[BlackElo "1959"]

1. e4 {[%clk 01:30:49]} {[%emt 00:00:10]} e6 {[%clk 01:30:47]} {[%emt
00:00:14]} 2. d4 {[%clk 01:31:03]} {[%emt 00:00:16]} d5 {[%clk 01:31:08]}
{[%emt 00:00:08]} 3. exd5 {[%clk 01:31:22]} {[%emt 00:00:11]} exd5 {[%emt
00:00:16]} 4. c4 {[%emt 00:00:57]} c6 {[%clk 01:27:53]} {[%emt 00:02:35]} 5.
Nf3 {[%clk 01:30:26]} {[%emt 00:01:24]} Bg4 {[%clk 01:26:19]} {[%emt 00:02:08]}
6. Nc3 {[%clk 01:28:29]} {[%emt 00:02:43]} Nf6 {[%clk 01:23:35]} {[%emt
00:03:07]} 7. Bg5 {[%clk 01:26:28]} {[%emt 00:02:24]} Be7 {[%clk 01:17:41]}
{[%emt 00:06:34]} 8. h3 {[%clk 01:23:12]} {[%emt 00:03:33]} Bh5 {[%clk
01:13:45]} {[%emt 00:04:20]} 9. Bd3 {[%clk 01:21:06]} {[%emt 00:02:46]} O-O
{[%clk 01:12:02]} {[%emt 00:01:59]} 10. O-O {[%clk 01:19:58]} {[%emt 00:01:43]}
Bg6 {[%clk 01:09:24]} {[%emt 00:03:09]} 11. Bxg6 {[%clk 01:19:13]} {[%emt
00:01:15]} hxg6 {[%clk 01:09:39]} {[%emt 00:00:14]} 12. cxd5 {[%clk 01:17:58]}
{[%emt 00:01:46]} cxd5 {[%clk 01:09:17]} {[%emt 00:00:52]} 13. Rc1 {[%clk
01:16:47]} {[%emt 00:01:41]} Nc6 {[%clk 01:06:05]} {[%emt 00:03:43]} 14. Bxf6
{[%clk 01:14:18]} {[%emt 00:02:58]} Bxf6 {[%clk 01:06:16]} {[%emt 00:00:18]} 15.
Qd2 {[%clk 01:14:26]} {[%emt 00:00:24]} Re8 {[%clk 01:06:02]} {[%emt 00:00:43]}
16. Rfe1 {[%clk 01:14:28]} {[%emt 00:00:28]} Rxe1+ {[%clk 01:04:49]} {[%emt
00:01:44]} 17. Rxe1 {[%clk 01:14:42]} {[%emt 00:00:16]} a6 {[%clk 01:03:40]}
{[%emt 00:01:38]} 1/2-1/2

[Event "Skanderborg Skakklub SmukSkak EMT"]
[Site "Niels Ebbesenskolen, Skanderborg, Denmark"]
[Date "2020.08.21"]
[Round "1.2"]
[White "Hansen, Morten Lyck"]
[Black "Knudsen, Martin"]
[Result "1-0"]
[TimeControl "90 min. til 40 træk, derefter 30 min. plus opsparet tid til resten af partiet med 30 sek. tillæg pr. træk fra træk ét."]
[WhiteFideId "1408437"]
[BlackFideId "1406523"]
[WhiteElo "1945"]
[BlackElo "1990"]

1. e4 {[%clk 01:30:49]} {[%emt 00:00:11]} Nf6 {[%clk 01:30:38]} {[%emt
00:00:22]} 2. e5 {[%clk 01:30:40]} {[%emt 00:00:39]} Nd5 {[%clk 01:31:02]}
{[%emt 00:00:06]} 3. d4 {[%clk 01:30:08]} {[%emt 00:01:05]} d6 {[%clk
01:31:21]} {[%emt 00:00:12]} 4. Nf3 {[%clk 01:30:18]} {[%emt 00:00:24]} dxe5
{[%clk 01:31:16]} {[%emt 00:00:36]} 5. Nxe5 {[%clk 01:30:41]} c6 {[%clk
01:31:26]} {[%emt 00:00:24]} 6. Be2 {[%clk 01:28:09]} {[%emt 00:02:57]} Nd7
{[%clk 01:29:44]} {[%emt 00:02:22]} 7. Nxd7 {[%clk 01:26:07]} {[%emt 00:02:22]}
Bxd7 {[%clk 01:29:51]} {[%emt 00:00:24]} 8. O-O {[%clk 01:26:31]} {[%emt
00:00:23]} g6 {[%clk 01:29:44]} {[%emt 00:00:24]} 9. c4 {[%clk 01:26:07]}
{[%emt 00:00:47]} Nb6 {[%clk 01:28:58]} {[%emt 00:01:33]} 10. Nc3 {[%clk
01:26:12]} {[%emt 00:00:24]} Bg7 {[%clk 01:29:06]} {[%emt 00:00:24]} 11. Be3
{[%clk 01:19:05]} {[%emt 00:07:22]} O-O {[%clk 01:28:30]} {[%emt 00:01:10]} 12.
Qd2 {[%clk 01:18:24]} {[%emt 00:01:10]} Re8 {[%clk 01:24:26]} {[%emt 00:04:46]}
13. Rad1 {[%clk 01:18:18]} {[%emt 00:00:24]} Be6 {[%clk 01:16:57]} {[%emt
00:07:54]} 14. b3 {[%clk 01:17:05]} {[%emt 00:01:43]} Qc8 {[%clk 01:14:11]}
{[%emt 00:03:16]} 15. Ne4 {[%clk 01:15:46]} {[%emt 00:01:47]} Rd8 {[%clk
01:12:23]} {[%emt 00:02:20]} 16. Qc1 {[%clk 01:13:45]} {[%emt 00:02:30]} Bg4
{[%clk 01:10:22]} {[%emt 00:02:32]} 17. f3 {[%clk 01:13:23]} {[%emt 00:00:52]}
Bf5 {[%clk 01:09:52]} {[%emt 00:01:00]} 18. g4 {[%clk 01:08:18]} {[%emt
00:05:34]} Bd7 {[%clk 01:06:55]} {[%emt 00:03:32]} 19. Bh6 {[%clk 01:02:55]}
{[%emt 00:05:48]} f5 {[%clk 00:56:29]} {[%emt 00:11:14]} 20. Bxg7 {[%clk
01:02:45]} {[%emt 00:00:23]} Kxg7 {[%clk 00:56:45]} {[%emt 00:00:23]} 21. Nc5
{[%clk 00:59:32]} {[%emt 00:03:34]} fxg4 {[%clk 00:52:54]} {[%emt 00:04:21]} 22.
Qg5 {[%clk 00:59:34]} {[%emt 00:00:46]} Re8 {[%clk 00:38:49]} {[%emt 00:14:31]}
23. fxg4 {[%clk 00:59:35]} {[%emt 00:00:16]} h6 {[%clk 00:36:20]} {[%emt
00:02:58]} 24. Qe5+ {[%clk 00:54:26]} {[%emt 00:05:52]} Kg8 {[%clk 00:35:34]}
{[%emt 00:01:12]} 25. Qf4 {[%clk 00:51:15]} {[%emt 00:03:31]} e5 {[%clk
00:27:51]} {[%emt 00:08:14]} 26. Qf7+ {[%clk 00:48:18]} {[%emt 00:03:30]} Kh8
{[%clk 00:28:07]} {[%emt 00:00:24]} 27. Qxg6 {[%clk 00:47:59]} {[%emt
00:00:48]} Re7 {[%clk 00:28:19]} {[%emt 00:00:23]} 28. Qxh6+ {[%clk 00:45:24]}
{[%emt 00:02:47]} Kg8 {[%clk 00:28:42]} {[%emt 00:00:22]} 29. Rf6 {[%clk
00:43:28]} {[%emt 00:02:24]} Rg7 {[%clk 00:28:31]} {[%emt 00:00:48]} 30. Rg6
{[%clk 00:40:39]} {[%emt 00:03:03]} Qf8 {[%clk 00:28:16]} {[%emt 00:00:47]} 31.
Rxg7+ {[%clk 00:40:46]} {[%emt 00:00:23]} Qxg7 {[%clk 00:28:38]} {[%emt
00:00:02]} 32. Qxg7+ {[%clk 00:41:11]} {[%emt 00:00:22]} Kxg7 {[%clk 00:29:04]}
33. dxe5 {[%clk 00:41:27]} {[%emt 00:00:02]} Be8 {[%clk 00:29:22]} {[%emt
00:00:21]} 34. Nxb7 {[%clk 00:41:21]} {[%emt 00:00:26]} 1-0

[Event "Skanderborg Skakklub SmukSkak EMT"]
[Site "Niels Ebbesenskolen, Skanderborg, Denmark"]
[Date "2020.08.21"]
[Round "1.3"]
[White "Wilton, Lars"]
[Black "Bønnelykke, Ole"]
[Result "1/2-1/2"]
[TimeControl "90 min. til 40 træk, derefter 30 min. plus opsparet tid til resten af partiet med 30 sek. tillæg pr. træk fra træk ét."]
[WhiteFideId "1404962"]
[BlackFideId "1407287"]
[WhiteElo "1984"]
[BlackElo "2021"]

1. b3 {[%clk 01:30:30]} {[%emt 01:47:37]} e5 {[%clk 01:30:30]} {[%emt
00:00:12]} 2. e3 {[%clk 01:30:30]} {[%emt 00:00:12]} Nc6 {[%clk 01:30:30]}
{[%emt 00:00:06]} 3. Bb2 {[%clk 01:30:30]} {[%emt 00:00:14]} Nf6 {[%clk
01:30:30]} {[%emt 00:00:49]} 4. Bb5 {[%clk 01:30:30]} {[%emt 00:01:27]} d6
{[%clk 01:30:30]} {[%emt 00:00:31]} 5. d4 {[%clk 01:30:10]} {[%emt 00:01:40]}
exd4 {[%clk 01:30:31]} {[%emt 00:00:31]} 6. exd4 {[%clk 01:30:25]} {[%emt
00:00:10]} a6 {[%clk 01:30:13]} {[%emt 00:00:51]} 7. Bd3 {[%clk 01:28:50]}
{[%emt 00:02:02]} Be7 {[%clk 01:30:09]} {[%emt 00:00:41]} 8. Nf3 {[%clk
01:28:39]} {[%emt 00:00:41]} O-O {[%clk 01:30:05]} {[%emt 00:00:41]} 9. a3
{[%clk 01:25:41]} {[%emt 00:03:23]} Bg4 {[%clk 01:28:48]} {[%emt 00:01:40]} 10.
Nbd2 {[%clk 01:25:57]} {[%emt 00:00:20]} Qd7 {[%clk 01:27:37]} {[%emt
00:01:42]} 11. O-O {[%emt 00:00:41]} 1/2-1/2

[Event "Skanderborg Skakklub SmukSkak EMT"]
[Site "Niels Ebbesenskolen, Skanderborg, Denmark"]
[Date "2020.08.21"]
[Round "1.4"]
[White "Thøgersen, Rasmus"]
[Black "Pedersen, Nicolai Vesterbæk"]
[Result "1-0"]
[TimeControl "90 min. til 40 træk, derefter 30 min. plus opsparet tid til resten af partiet med 30 sek. tillæg pr. træk fra træk ét."]
[BlackTitle "IM"]
[WhiteFideId "1431412"]
[BlackFideId "1402340"]
[WhiteElo "2267"]
[BlackElo "2384"]

1. e4 {[%emt 01:47:29]} e5 {[%emt 00:01:04]} 2. Nf3 {[%emt 00:00:07]} Nc6
{[%emt 00:00:21]} 3. Bc4 {[%emt 00:00:08]} Bc5 {[%emt 00:00:29]} 4. c3 {[%emt
00:00:21]} Nf6 {[%emt 00:00:41]} 5. d4 {[%emt 00:00:31]} exd4 {[%emt 00:00:59]}
6. e5 {[%emt 00:00:10]} d5 {[%emt 00:02:54]} 7. Bb5 Ne4 {[%emt 00:03:23]} 8.
cxd4 Bb6 {[%emt 00:10:56]} 9. Nc3 O-O {[%emt 00:05:05]} 10. Be3 Bg4 {[%emt
00:16:26]} 11. h3 {[%emt 00:00:45]} Bh5 {[%emt 00:06:57]} 12. Qc2 {[%emt
00:00:14]} Bg6 {[%emt 00:12:47]} 13. Qb3 {[%emt 00:04:52]} Ne7 {[%emt
00:13:37]} 14. Be2 {[%emt 00:12:31]} c6 {[%emt 00:02:22]} 15. Nh4 {[%emt
00:05:45]} Nxc3 {[%emt 00:11:05]} 16. bxc3 {[%emt 00:07:07]} Be4 {[%emt
00:02:44]} 17. O-O {[%emt 00:19:13]} Nf5 {[%emt 00:05:45]} 18. Nxf5 Bxf5 19. g4
{[%emt 00:00:20]} Bd7 {[%emt 00:00:20]} 20. f4 {[%emt 00:06:52]} f5 {[%emt
00:00:58]} 21. c4 {[%emt 00:03:41]} dxc4 {[%emt 00:00:22]} 22. Bxc4+ {[%emt
00:05:32]} Kh8 {[%emt 00:00:02]} 23. e6 {[%emt 00:07:04]} Be8 {[%emt 00:01:46]}
24. d5 {[%emt 00:06:01]} cxd5 {[%emt 00:00:51]} 25. Bxb6 {[%emt 00:00:11]} axb6
{[%emt 00:01:01]} 26. Bxd5 {[%emt 00:00:13]} fxg4 {[%emt 00:00:25]} 27. hxg4
{[%emt 00:03:17]} Qh4 {[%emt 00:00:09]} 28. Qf3 {[%emt 00:02:18]} Ra4 {[%emt
00:00:36]} 29. Kg2 {[%emt 00:03:59]} h5 {[%emt 00:00:11]} 30. Rh1 {[%emt
00:04:01]} Qf6 {[%emt 00:00:22]} 31. g5 {[%emt 00:01:47]} Qb2+ {[%emt
00:01:08]} 32. Kg3 {[%emt 00:00:01]} g6 {[%emt 00:00:40]} 33. Rab1 {[%emt
00:02:33]} Qd4 {[%emt 00:00:18]} 34. Rhf1 {[%emt 00:01:46]} Ra5 {[%emt
00:00:42]} 35. Rfd1 {[%emt 00:00:56]} Qc5 {[%emt 00:00:32]} 36. Rbc1 {[%emt
00:00:56]} Qb4 {[%emt 00:00:28]} 37. Rc8 {[%emt 00:01:22]} Ra3 {[%emt
00:00:33]} 38. Bb3 {[%emt 00:00:15]} h4+ {[%emt 00:00:29]} 39. Kg4 {[%emt
00:00:24]} Bc6 {[%emt 00:00:28]} 40. Rxf8+ {[%emt 00:01:18]} Qxf8 {[%emt
00:00:35]} 41. Qc3+ {[%emt 00:01:06]} Qg7 {[%emt 00:07:04]} 42. Rd8+ {[%emt
00:02:50]} Kh7 {[%emt 00:01:38]} 43. Qe1 {[%emt 00:05:06]} 1-0

[Event "Skanderborg Skakklub SmukSkak EMT"]
[Site "Niels Ebbesenskolen, Skanderborg, Denmark"]
[Date "2020.08.21"]
[Round "1.5"]
[White "Andersen, Rune"]
[Black "Hansen, Lars"]
[Result "0-1"]
[TimeControl "90 min. til 40 træk, derefter 30 min. plus opsparet tid til resten af partiet med 30 sek. tillæg pr. træk fra træk ét."]
[WhiteFideId "1405683"]
[BlackFideId "1402528"]
[WhiteElo "2129"]
[BlackElo "2223"]

1. d4 {[%clk 01:30:56]} {[%emt 00:00:03]} e6 {[%clk 01:30:45]} {[%emt
00:00:15]} 2. c4 {[%clk 01:30:40]} {[%emt 00:00:45]} b6 {[%clk 01:31:09]}
{[%emt 00:00:06]} 3. a3 {[%clk 01:30:02]} {[%emt 00:01:12]} Bb7 {[%clk
01:31:29]} {[%emt 00:00:10]} 4. Nc3 {[%clk 01:30:00]} {[%emt 00:00:31]} Nf6
{[%clk 01:31:18]} {[%emt 00:00:41]} 5. d5 {[%clk 01:29:41]} {[%emt 00:00:49]}
exd5 {[%clk 01:27:12]} {[%emt 00:04:36]} 6. cxd5 {[%clk 01:30:05]} {[%emt
00:00:20]} Bd6 {[%clk 01:27:24]} {[%emt 00:00:20]} 7. Nf3 {[%clk 01:28:33]}
{[%emt 00:02:02]} O-O {[%clk 01:27:35]} {[%emt 00:00:20]} 8. Bg5 {[%clk
01:27:42]} {[%emt 00:01:01]} h6 {[%clk 01:25:48]} {[%emt 00:02:21]} 9. Bh4
{[%clk 01:27:40]} {[%emt 00:00:41]} Re8 {[%clk 01:22:44]} {[%emt 00:03:28]} 10.
e3 {[%clk 01:27:37]} {[%emt 00:00:41]} c6 {[%clk 00:59:12]} {[%emt 00:23:47]}
11. Bc4 {[%clk 01:15:17]} {[%emt 00:12:49]} Na6 {[%clk 00:57:26]} {[%emt
00:02:17]} 12. O-O {[%clk 01:10:59]} {[%emt 00:05:03]} Nc7 {[%clk 00:52:52]}
{[%emt 00:04:52]} 13. dxc6 {[%clk 01:09:29]} {[%emt 00:02:04]} dxc6 {[%clk
00:53:13]} {[%emt 00:00:10]} 14. Qb3 {[%clk 01:07:06]} {[%emt 00:03:03]} Qe7
{[%clk 00:48:12]} {[%emt 00:05:25]} 15. Rfd1 {[%clk 01:04:58]} {[%emt
00:02:35]} Rad8 {[%clk 00:44:50]} {[%emt 00:03:43]} 16. Rd2 {[%clk 00:41:05]}
{[%emt 00:24:24]} b5 {[%clk 00:19:37]} {[%emt 00:26:00]} 17. Rad1 {[%clk
00:37:45]} {[%emt 00:03:39]} g5 {[%clk 00:08:14]} {[%emt 00:11:51]} 18. Bg3
{[%clk 00:25:20]} {[%emt 00:12:50]} Bxg3 {[%clk 00:08:01]} {[%emt 00:00:44]} 19.
hxg3 {[%clk 00:21:06]} {[%emt 00:04:44]} Rb8 {[%clk 00:08:23]} {[%emt
00:00:09]} 20. Be2 {[%clk 00:18:35]} {[%emt 00:03:00]} c5 {[%clk 00:08:25]}
{[%emt 00:00:28]} 21. Qc2 {[%clk 00:17:00]} {[%emt 00:02:05]} Bc8 {[%clk
00:02:18]} {[%emt 00:06:36]} 22. e4 {[%clk 00:10:18]} {[%emt 00:07:13]} b4
{[%clk 00:01:40]} {[%emt 00:01:08]} 23. Nd5 {[%clk 00:06:28]} {[%emt 00:04:19]}
Ncxd5 {[%clk 00:02:02]} {[%emt 00:00:09]} 24. Rxd5 {[%clk 00:06:52]} {[%emt
00:00:06]} Nxd5 {[%clk 00:01:53]} {[%emt 00:00:39]} 25. Rxd5 {[%emt 00:01:07]}
Qxe4 {[%clk 00:01:42]} {[%emt 00:00:23]} 26. Qxc5 {[%clk 00:06:27]} {[%emt
00:00:36]} Qxe2 {[%emt 00:05:45]} 0-1

[Event "Skanderborg Skakklub SmukSkak EMT"]
[Site "Niels Ebbesenskolen, Skanderborg, Denmark"]
[Date "2020.08.21"]
[Round "1.6"]
[White "Fogh, Jens Olaf Svanholm"]
[Black "Brondt, Nicolai Kvist"]
[Result "1/2-1/2"]
[TimeControl "90 min. til 40 træk, derefter 30 min. plus opsparet tid til resten af partiet med 30 sek. tillæg pr. træk fra træk ét."]
[BlackTitle "FM"]
[WhiteFideId "1409476"]
[BlackFideId "1413848"]
[WhiteElo "2117"]
[BlackElo "2244"]

1. d4 {[%clk 01:30:53]} {[%emt 00:00:06]} Nf6 {[%clk 01:30:55]} {[%emt
00:00:06]} 2. Nf3 {[%clk 01:31:09]} {[%emt 00:00:14]} d5 {[%clk 01:31:17]}
{[%emt 00:00:08]} 3. e3 {[%clk 01:31:02]} {[%emt 00:00:36]} c5 {[%clk
01:31:37]} {[%emt 00:00:10]} 4. Be2 {[%clk 01:29:02]} {[%emt 00:02:32]} Nc6
{[%clk 01:31:35]} {[%emt 00:00:39]} 5. O-O {[%clk 01:27:04]} {[%emt 00:02:34]}
Bg4 {[%clk 01:28:34]} {[%emt 00:03:23]} 6. Ne5 {[%clk 01:16:56]} {[%emt
00:10:34]} Bxe2 {[%clk 01:28:22]} {[%emt 00:00:42]} 7. Qxe2 {[%clk 01:16:34]}
{[%emt 00:01:01]} cxd4 {[%clk 01:27:55]} {[%emt 00:01:01]} 8. Nxc6 {[%clk
01:16:36]} {[%emt 00:00:20]} bxc6 {[%clk 01:28:22]} 9. exd4 {[%clk 01:16:51]}
{[%emt 00:00:20]} e6 {[%clk 01:25:11]} {[%emt 00:03:43]} 10. c4 {[%clk
01:16:20]} {[%emt 00:01:01]} dxc4 {[%clk 01:18:38]} {[%emt 00:07:11]} 11. Qxc4
{[%clk 01:13:41]} {[%emt 00:02:48]} Qd5 {[%clk 01:17:46]} {[%emt 00:01:22]} 12.
Qc2 {[%clk 00:45:09]} {[%emt 00:29:08]} Bd6 {[%clk 01:12:55]} {[%emt 00:05:27]}
13. h3 {[%clk 00:40:20]} {[%emt 00:05:25]} O-O {[%clk 01:11:21]} {[%emt
00:01:54]} 14. Be3 {[%clk 00:39:59]} {[%emt 00:01:01]} Rac8 {[%clk 01:02:02]}
{[%emt 00:09:49]} 15. Nc3 {[%clk 00:38:58]} {[%emt 00:01:21]} Qc4 {[%clk
00:58:05]} {[%emt 00:04:24]} 16. Rfc1 {[%clk 00:35:38]} {[%emt 00:04:04]} Qb4
{[%clk 00:50:11]} {[%emt 00:08:09]} 17. a3 {[%clk 00:33:56]} {[%emt 00:02:15]}
Qb7 {[%clk 00:49:11]} {[%emt 00:01:42]} 18. b4 {[%clk 00:31:37]} {[%emt
00:02:43]} Nd5 {[%clk 00:44:52]} {[%emt 00:04:44]} 19. Qd3 {[%clk 00:29:30]}
{[%emt 00:02:44]} Be7 {[%clk 00:40:20]} {[%emt 00:05:05]} 20. Rc2 {[%clk
00:24:39]} {[%emt 00:05:05]} Rfd8 {[%clk 00:36:31]} {[%emt 00:04:24]} 21. Ne4
{[%clk 00:19:35]} {[%emt 00:05:41]} Qb5 {[%clk 00:33:22]} {[%emt 00:03:43]} 22.
Qd2 {[%clk 00:18:06]} {[%emt 00:02:02]} h6 {[%clk 00:27:34]} {[%emt 00:06:01]}
23. Rac1 {[%clk 00:14:53]} {[%emt 00:03:40]} Qa4 {[%clk 00:19:19]} {[%emt
00:08:45]} 24. Ra2 {[%clk 00:10:12]} {[%emt 00:05:10]} e5 {[%clk 00:15:54]}
{[%emt 00:03:55]} 25. Nc3 {[%clk 00:09:29]} {[%emt 00:01:13]} Qb3 {[%clk
00:11:48]} {[%emt 00:04:36]} 26. Nxd5 {[%clk 00:09:17]} {[%emt 00:00:42]} Rxd5
{[%clk 00:12:06]} {[%emt 00:00:12]} 27. Rc3 {[%clk 00:08:15]} {[%emt 00:01:32]}
Qb1+ {[%clk 00:08:22]} {[%emt 00:04:14]} 28. Rc1 {[%clk 00:07:22]} {[%emt
00:01:23]} Qe4 {[%clk 00:08:08]} {[%emt 00:00:44]} 29. f3 {[%clk 00:07:40]}
{[%emt 00:00:13]} Qg6 {[%clk 00:07:53]} {[%emt 00:00:45]} 30. Qf2 {[%clk
00:07:52]} {[%emt 00:00:18]} e4 {[%clk 00:05:23]} {[%emt 00:03:01]} 31. fxe4
{[%clk 00:06:46]} {[%emt 00:01:35]} Qxe4 {[%clk 00:05:41]} {[%emt 00:00:12]} 32.
Rf1 {[%clk 00:06:34]} {[%emt 00:00:42]} Bf6 {[%clk 00:05:41]} {[%emt 00:00:30]}
33. Rd2 {[%clk 00:04:34]} {[%emt 00:02:30]} Re8 {[%clk 00:05:46]} {[%emt
00:00:25]} 34. Re2 {[%clk 00:03:20]} {[%emt 00:01:45]} Qd3 {[%clk 00:03:23]}
{[%emt 00:02:52]} 35. Kh1 {[%clk 00:03:48]} {[%emt 00:00:02]} Rxd4 {[%clk
00:02:10]} {[%emt 00:01:44]} 36. Ree1 {[%clk 00:04:00]} {[%emt 00:00:18]} Rde4
{[%clk 00:01:24]} {[%emt 00:01:15]} 37. Bxa7 {[%clk 00:02:53]} {[%emt
00:01:38]} Qxa3 {[%clk 00:01:51]} {[%emt 00:00:03]} 38. Rxe4 {[%clk 00:01:52]}
{[%emt 00:01:32]} Rxe4 {[%clk 00:02:19]} {[%emt 00:00:02]} 39. Bc5 {[%clk
00:01:08]} {[%emt 00:01:14]} Qb3 {[%clk 00:01:38]} {[%emt 00:01:09]} 40. Qd2
{[%clk 00:00:44]} {[%emt 00:00:54]} Qe6 {[%clk 00:01:23]} {[%emt 00:00:45]} 41.
Qd3 {[%clk 00:28:27]} {[%emt 00:02:48]} Re1 {[%clk 00:27:15]} {[%emt 00:04:37]}
42. Qf3 {[%clk 00:24:54]} {[%emt 00:04:03]} Bc3 {[%clk 00:21:52]} {[%emt
00:05:53]} 43. Kg1 {[%clk 00:18:26]} {[%emt 00:06:59]} Rxf1+ {[%clk 00:14:08]}
{[%emt 00:08:14]} 44. Qxf1 {[%clk 00:18:46]} {[%emt 00:00:10]} Qe1 {[%clk
00:13:32]} {[%emt 00:01:06]} 45. Qxe1 {[%clk 00:19:13]} {[%emt 00:00:04]} Bxe1
{[%clk 00:13:57]} {[%emt 00:00:05]} 46. Kf1 {[%clk 00:19:40]} {[%emt 00:00:03]}
Bg3 {[%clk 00:13:01]} {[%emt 00:01:26]} 47. Ke2 {[%clk 00:20:02]} {[%emt
00:00:08]} f5 {[%clk 00:13:10]} {[%emt 00:00:20]} 48. Kd3 {[%clk 00:20:28]}
{[%emt 00:00:06]} Kf7 {[%clk 00:13:31]} {[%emt 00:00:09]} 49. Kc4 {[%clk
00:20:24]} {[%emt 00:00:34]} Ke6 {[%clk 00:13:53]} {[%emt 00:00:08]} 50. Bf8
{[%clk 00:20:31]} {[%emt 00:00:22]} Kf7 {[%clk 00:09:39]} {[%emt 00:04:44]} 51.
Bc5 {[%clk 00:20:53]} {[%emt 00:00:08]} Ke6 {[%clk 00:03:23]} {[%emt 00:06:47]}
52. Bf8 {[%clk 00:21:14]} {[%emt 00:00:08]} Be5 {[%clk 00:03:51]} {[%emt
00:00:02]} 53. Kc5 {[%clk 00:21:21]} {[%emt 00:00:23]} Kd7 {[%clk 00:04:04]}
{[%emt 00:00:16]} 54. Kc4 {[%clk 00:19:10]} {[%emt 00:02:42]} h5 {[%clk
00:03:50]} {[%emt 00:00:45]} 55. b5 {[%clk 00:19:12]} {[%emt 00:00:27]} cxb5+
{[%clk 00:03:36]} {[%emt 00:00:45]} 56. Kxb5 {[%clk 00:19:35]} {[%emt
00:00:08]} g6 {[%clk 00:03:03]} {[%emt 00:01:03]} 57. Kc4 {[%clk 00:19:52]}
{[%emt 00:00:12]} Ke6 {[%clk 00:03:28]} {[%emt 00:00:04]} 58. Kd3 {[%clk
00:18:36]} {[%emt 00:01:46]} Kd5 {[%clk 00:03:56]} {[%emt 00:00:02]} 59. Ke3
{[%clk 00:16:07]} {[%emt 00:03:00]} Bb2 {[%clk 00:03:21]} {[%emt 00:01:05]} 60.
Kf3 {[%clk 00:16:07]} {[%emt 00:00:29]} Bc3 {[%clk 00:03:01]} {[%emt 00:00:49]}
61. Bh6 {[%clk 00:15:28]} {[%emt 00:01:08]} Be5 {[%clk 00:02:31]} {[%emt
00:01:02]} 62. Bc1 {[%clk 00:14:22]} {[%emt 00:01:35]} Kc4 {[%clk 00:02:36]}
{[%emt 00:00:25]} 63. Be3 {[%clk 00:13:05]} {[%emt 00:01:48]} Kd3 {[%clk
00:03:00]} {[%emt 00:00:06]} 64. Bg5 {[%clk 00:12:36]} {[%emt 00:00:58]} Bd6
{[%clk 00:02:11]} {[%emt 00:01:18]} 65. Bf6 {[%clk 00:11:27]} {[%emt 00:01:40]}
Kd2 {[%clk 00:02:07]} {[%emt 00:00:33]} 66. Bh4 {[%clk 00:09:55]} {[%emt
00:02:03]} Be5 {[%clk 00:01:45]} {[%emt 00:00:52]} 67. Bf2 {[%clk 00:07:39]}
{[%emt 00:02:47]} Bc7 {[%clk 00:01:37]} {[%emt 00:00:37]} 68. Bh4 {[%clk
00:07:50]} {[%emt 00:00:20]} Bb6 {[%clk 00:01:11]} {[%emt 00:00:55]} 69. Bg5+
{[%clk 00:04:38]} {[%emt 00:03:59]} Kd3 {[%clk 00:01:28]} {[%emt 00:00:12]} 70.
Bf4 {[%clk 00:04:48]} {[%emt 00:00:21]} Bd8 {[%clk 00:01:45]} {[%emt 00:00:12]}
71. Bh6 {[%clk 00:04:37]} {[%emt 00:00:42]} Kd4 {[%clk 00:01:39]} {[%emt
00:00:35]} 72. Bc1 {[%clk 00:04:55]} {[%emt 00:00:13]} Kd5 {[%clk 00:01:49]}
{[%emt 00:00:19]} 73. Bd2 {[%clk 00:05:12]} {[%emt 00:00:14]} Ke6 {[%clk
00:02:03]} {[%emt 00:00:16]} 74. Bc1 {[%clk 00:05:27]} {[%emt 00:00:15]} g5
{[%clk 00:02:17]} {[%emt 00:00:17]} 75. g4 {[%clk 00:04:51]} {[%emt 00:01:06]}
hxg4+ {[%clk 00:01:43]} {[%emt 00:01:04]} 76. hxg4 {[%clk 00:05:14]} {[%emt
00:00:07]} f4 {[%clk 00:02:05]} {[%emt 00:00:08]} 77. Bxf4 {[%clk 00:05:31]}
{[%emt 00:00:14]} gxf4 {[%clk 00:02:31]} {[%emt 00:00:04]} 78. Kxf4 {[%clk
00:05:55]} {[%emt 00:00:06]} Kf7 {[%clk 00:03:00]} {[%emt 00:00:01]} 79. Kf5
{[%clk 00:06:18]} {[%emt 00:00:07]} Kg8 {[%clk 00:03:26]} {[%emt 00:00:04]} 80.
g5 {[%clk 00:06:45]} {[%emt 00:00:04]} Bxg5 {[%emt 00:00:03]} 81. Kxg5 {[%emt
00:00:05]} 1/2-1/2